[Event "Vienna Championship-B 2022"]
[Site "Vienna"]
[Date "2022.09.19"]
[Round "3.1"]
[White "Anastasakis, Georgios"]
[Black "Wagner, Leopold Franziskus"]
[Result "0-1"]
[ECO "B13"]
[WhiteElo "1893"]
[BlackElo "2201"]
[Annotator "RC"]
[PlyCount "84"]
[EventDate "2022.09.17"]
[EventType "swiss"]
[EventCountry "AUT"]
[SourceTitle "playchess.com"]
[Source "ChessBase"]
[SourceQuality "1"]
[TimeControl "5400+30"]

1. e4 {[%emt 0:00:06]} c6 {[%emt 0:00:03]} 2. d4 {[%emt 0:00:08]} d5 {[%emt 0:00:03]} 3. exd5 {[%emt 0:01:00]} cxd5 {[%emt 0:00:01]} 4. Bd3 {[%emt 0:00:17]} Nc6 {[%emt 0:00:07]} 5. Nf3 {[%emt 0:00:12]} Bg4 {[%emt 0:00:17]} 6. c3 {[%emt 0:00:17]} e6 {[%emt 0:00:29]} 7. h3 {[%emt 0:05:02]} Bh5 {[%emt 0:00:41]} 8. O-O {[%emt 0:00:13]} Bd6 {[%emt 0:00:10]} 9. Re1 {[%emt 0:00:36]} Nge7 {[%emt 0:00:18]} 10. Nbd2 {[%emt 0:01:26]} O-O {[%emt 0:00:17]} 11. Nf1 {[%emt 0:05:36]} Qc7 {[%emt 0:01:58]} 12. Bg5 {[%emt 0:02:32]} f6 {[%emt 0:14:26]} 13. Bh4 {[%emt 0:06:35]} Bxf3 {[%emt 0:05:56]} 14. Qxf3 {[%emt 0:00:15]} e5 {[%emt 0:00:10]} 15. dxe5 {[%emt 0:02:51]} fxe5 {[%emt 0:00:02]} 16. Qh5 {[%emt 0:03:34]} e4 {[%emt 0:00:42]} 17. Bc2 {[%emt 0:00:55]} Nf5 {[%emt 0:01:10]} 18. Bg3 {[%emt 0:05:51]} Rad8 {[%emt 0:07:30]} 19. Bxd6 {[%emt 0:00:34]} Rxd6 {[%emt 0:01:58]} 20. Ne3 {[%emt 0:01:37]} g6 {[%emt 0:06:42]} 21. Qe2 {[%emt 0:01:05]} Kh8 {[%emt 0:03:00]} 22. Bb3 {[%emt 0:06:52]} Nce7 {[%emt 0:06:29]} 23. Rad1 {[%emt 0:03:19]} Qc5 {[%emt 0:01:10]} 24. Rd2 {[%emt 0:07:34]} Rfd8 {[%emt 0:08:36]} 25. Qg4 {[%emt 0:10:12]} Nxe3 {[%emt 0:15:10]} 26. Rxe3 {[%emt 0:00:39]} Nf5 {[%emt 0:02:02]} 27. Re1 {[%emt 0:05:03]} b5 {[%emt 0:04:05]} 28. Qf4 {[%emt 0:02:02]} Re8 {[%emt 0:01:52]} 29. Kh2 {[%emt 0:06:41]} Kg7 {[%emt 0:06:49]} 30. Kh1 {[%emt 0:11:48]} a5 {[%emt 0:04:30]} 31. g4 {[%emt 0:06:25]} Nh4 {[%emt 0:01:49]} 32. Red1 {[%emt 0:05:13]} Rf6 {[%emt 0:05:27]} 33. Qe3 {[%emt 0:00:00]} Qxe3 {[%emt 0:00:32]} 34. fxe3 {[%emt 0:00:00]} Rf3 {[%emt 0:00:36]} 35. Rxd5 {[%emt 0:00:00]} Rxe3 {[%emt 0:01:15]} 36. Rxb5 {[%emt 0:00:06]} Rxh3+ {[%emt 0:00:19]} 37. Kg1 {[%emt 0:00:01]} Re7 {[%emt 0:00:18]} 38. c4 {[%emt 0:01:02]} e3 {[%emt 0:00:11]} 39. c5 {[%emt 0:01:23]} e2 {[%emt 0:00:04]} 40. Rc1 {[%emt 0:00:11]} Rg3+ {[%emt 0:01:25]} 41. Kh2 {[%emt 0:00:17]} Rg2+ {[%emt 0:00:05]} 42. Kh3 {[%emt 0:00:04]} g5 {[%emt 0:00:01]} 0-1

[Event "Vienna Championship-B 2022"]
[Site "Vienna"]
[Date "2022.09.19"]
[Round "3.3"]
[White "Andresen, Erik"]
[Black "Zetthofer, Gerald"]
[Result "1/2-1/2"]
[ECO "E04"]
[WhiteElo "1879"]
[BlackElo "2153"]
[Annotator "ChessBase"]
[PlyCount "59"]
[EventDate "2022.09.17"]
[EventType "swiss"]
[EventCountry "AUT"]
[SourceTitle "playchess.com"]
[Source "ChessBase"]
[SourceQuality "1"]
[TimeControl "5400+30"]

1. Nf3 {[%emt 0:00:09]} d5 {[%emt 0:00:20]} 2. g3 {[%emt 0:00:11]} c5 {[%emt 0:00:20]} 3. Bg2 {[%emt 0:00:12]} Nc6 {[%emt 0:00:14]} 4. d4 {[%emt 0:00:09]} Nf6 {[%emt 0:00:51]} 5. O-O {[%emt 0:00:08]} e6 {[%emt 0:00:41]} 6. c4 {[%emt 0:00:20]} dxc4 {[%emt 0:01:42]} 7. dxc5 {[%emt 0:00:17]} Qxd1 {[%emt 0:05:12]} 8. Rxd1 {[%emt 0:00:33]} Bxc5 {[%emt 0:00:05]} 9. Nbd2 {[%emt 0:00:10]} c3 {[%emt 0:02:56]} 10. bxc3 {[%emt 0:00:07]} Bd7 {[%emt 0:05:16]} 11. Nb3 {[%emt 0:03:22]} Be7 {[%emt 0:02:52]} 12. Nfd4 {[%emt 0:00:34]} Rc8 {[%emt 0:01:58]} 13. Nb5 {[%emt 0:07:04]} O-O {[%emt 0:03:17]} 14. Nd6 {[%emt 0:03:40]} Bxd6 {[%emt 0:03:54]} 15. Rxd6 {[%emt 0:00:51]} b6 {[%emt 0:06:33]} 16. c4 {[%emt 0:38:55]} Ne5 {[%emt 0:07:09]} 17. c5 {[%emt 0:02:03]} bxc5 {[%emt 0:00:40]} 18. Bf4 {[%emt 0:05:57]} Nc4 {[%emt 0:08:46]} 19. Rdd1 {[%emt 0:04:31]} e5 {[%emt 0:04:56]} 20. Bg5 {[%emt 0:02:49]} Be6 {[%emt 0:00:50]} 21. Rac1 {[%emt 0:01:36]} a5 {[%emt 0:03:51]} 22. Bb7 {[%emt 0:05:54]} Rc7 {[%emt 0:10:44]} 23. Ba6 {[%emt 0:00:18]} Nb6 {[%emt 0:07:52]} 24. Nxc5 {[%emt 0:00:51]} Bxa2 {[%emt 0:00:54]} 25. Ra1 {[%emt 0:08:26]} Rxc5 {[%emt 0:01:29]} 26. Rxa2 {[%emt 0:00:08]} Nbd5 {[%emt 0:02:27]} 27. Rda1 {[%emt 0:06:19]} Ra8 {[%emt 0:08:58]} 28. Bb7 {[%emt 0:01:57]} Ra7 {[%emt 0:00:39]} 29. Bxd5 {[%emt 0:00:08]} Rxd5 {[%emt 0:03:11]} 30. Bd2 {[%emt 0:00:29]} 1/2-1/2

[Event "Vienna Championship-B 2022"]
[Site "Vienna"]
[Date "2022.09.19"]
[Round "3.4"]
[White "Kummer, Helmut"]
[Black "Bytyqi, Kujtim"]
[Result "1-0"]
[ECO "E71"]
[WhiteElo "2203"]
[BlackElo "1862"]
[Annotator "RC"]
[PlyCount "55"]
[EventDate "2022.09.17"]
[EventType "swiss"]
[EventCountry "AUT"]
[SourceTitle "playchess.com"]
[Source "ChessBase"]
[SourceQuality "1"]
[TimeControl "5400+30"]

1. d4 {[%emt 0:00:04]} Nf6 {[%emt 0:00:10]} 2. c4 {[%emt 0:00:17]} g6 {[%emt 0:00:06]} 3. Nc3 {[%emt 0:00:15]} Bg7 {[%emt 0:00:07]} 4. e4 {[%emt 0:00:11]} d6 {[%emt 0:00:04]} 5. h3 {[%emt 0:01:21]} O-O {[%emt 0:00:43]} 6. Be3 {[%emt 0:00:07]} Nbd7 {[%emt 0:00:59]} 7. g4 {[%emt 0:22:40]} c5 {[%emt 0:13:32]} 8. d5 {[%emt 0:06:03]} Ne5 {[%emt 0:12:25]} 9. Be2 {[%emt 0:01:04]} a6 {[%emt 0:05:16]} 10. f4 {[%emt 0:06:04]} Ned7 {[%emt 0:00:14]} 11. g5 {[%emt 0:03:12]} Ne8 {[%emt 0:00:16]} 12. h4 {[%emt 0:04:26]} f5 {[%emt 0:11:20]} 13. exf5 {[%emt 0:00:33]} Rxf5 {[%emt 0:01:03]} 14. Bd3 {[%emt 0:02:11]} Nb6 {[%emt 0:03:09]} 15. Nge2 {[%emt 0:00:25]} Rf8 {[%emt 0:04:13]} 16. h5 {[%emt 0:00:25]} e5 {[%emt 0:00:34]} 17. hxg6 {[%emt 0:00:35]} exf4 {[%emt 0:05:53]} 18. gxh7+ {[%emt 0:00:57]} Kh8 {[%emt 0:00:13]} 19. Nxf4 {[%emt 0:00:05]} Rxf4 {[%emt 0:03:56]} 20. Bxf4 {[%emt 0:00:05]} Nd7 {[%emt 0:02:48]} 21. Qd2 {[%emt 0:09:45]} Ne5 {[%emt 0:00:23]} 22. Bxe5 {[%emt 0:03:30]} Bxe5 {[%emt 0:00:08]} 23. O-O-O {[%emt 0:00:51]} b5 {[%emt 0:00:22]} 24. Rde1 {[%emt 0:00:33]} Bg7 {[%emt 0:01:27]} 25. Qe3 {[%emt 0:03:15]} Bd7 {[%emt 0:02:38]} 26. Qe7 {[%emt 0:01:03]} Qc7 {[%emt 0:00:06]} 27. Qf7 {[%emt 0:05:11]} bxc4 {[%emt 0:01:57]} 28. Qg8# {[%emt 0:00:09]} 1-0

[Event "Vienna Championship-B 2022"]
[Site "Vienna"]
[Date "2022.09.19"]
[Round "3.5"]
[White "Nemetz, Markus"]
[Black "Obenaus, Paul"]
[Result "0-1"]
[ECO "E24"]
[WhiteElo "1830"]
[BlackElo "1825"]
[Annotator "NA COMBH"]
[PlyCount "36"]
[EventDate "2022.09.17"]
[EventType "swiss"]
[EventCountry "AUT"]
[SourceTitle "playchess.com"]
[Source "ChessBase"]
[SourceQuality "1"]
[TimeControl "5400+30"]

1. d4 {[%emt 0:00:09]} Nf6 {[%emt 0:00:07]} 2. c4 {[%emt 0:00:05]} e6 {[%emt 0:00:04]} 3. Nc3 {[%emt 0:00:07]} Bb4 {[%emt 0:00:04]} 4. f3 {[%emt 0:00:14]} d5 {[%emt 0:00:06]} 5. a3 {[%emt 0:00:06]} Bxc3+ {[%emt 0:00:05]} 6. bxc3 {[%emt 0:00:06]} c5 {[%emt 0:00:06]} 7. e3 {[%emt 0:00:09]} O-O {[%emt 0:00:42]} 8. cxd5 {[%emt 0:00:07]} Nxd5 {[%emt 0:00:06]} 9. Bd3 {[%emt 0:00:57]} Nc6 {[%emt 0:06:57]} 10. Ne2 {[%emt 0:00:27]} b6 {[%emt 0:04:29]} 11. O-O {[%emt 0:01:17]} Bb7 {[%emt 0:02:02]} 12. e4 {[%emt 0:08:28]} Nxc3 {[%emt 0:01:28]} 13. Nxc3 {[%emt 0:06:45]} Qxd4+ {[%emt 0:00:08]} 14. Kh1 {[%emt 0:00:08]} Qxc3 {[%emt 0:00:21]} 15. Ra2 {[%emt 0:00:10]} Rad8 {[%emt 0:07:24]} 16. Rd2 {[%emt 0:01:00]} c4 {[%emt 0:09:06]} 17. Bb1 {[%emt 0:00:35]} Rxd2 {[%emt 0:01:17]} 18. Bxd2 {[%emt 0:00:06]} Qxa3 {[%emt 0:01:34]} 0-1

[Event "Vienna Championship-B 2022"]
[Site "Vienna"]
[Date "2022.09.19"]
[Round "3.6"]
[White "Gratze, Michael"]
[Black "Stinner, David"]
[Result "1-0"]
[ECO "D23"]
[WhiteElo "1954"]
[BlackElo "1823"]
[Annotator "TA"]
[PlyCount "185"]
[EventDate "2022.09.17"]
[EventType "swiss"]
[EventCountry "AUT"]
[SourceTitle "playchess.com"]
[Source "ChessBase"]
[SourceQuality "1"]
[TimeControl "5400+30"]

{[%evp 12,185,21,7,23,22,36,27,23,17,23,23,47,0,19,19,21,27,27,27,30,22,26,26,27,22,22,20,20,20,24,20,26,16,45,34,97,94,110,123,122,41,75,62,103,108,110,111,107,98,174,116,183,112,165,160,247,247,292,262,278,264,464,280,462,465,1007,953,991,967,825,585,557,557,637,620,491,619,580,556,625,620,594,143,562,580,582,582,531,513,610,603,591,585,588,598,595,577,602,572,582,573,785,791,745,752,1327,1187,1068,987,1239,857,1818,1660,1875,1774,1531,1485,9344,11838,5899,1928,29969,29970,29970,29970,29970,29971,29971,29972,29972,29973,29979,29972,29972,29973,29973,29974,29974,29974,29974,29973,29975,29972,29972,29972,29972,29973,29974,29974,29976,29977,29977,29978,29976,29979,29979,29979,29980,29981,29980,29975,29975,29976,29976,29977,29977,29976,29975,0,29978,29977,29985,29986,29986,29987]} 1. Nf3 {[%emt 0:00:03]} d5 {[%emt 0:00:37]} 2. d4 {[%emt 0:00:04]} Nf6 {[%emt 0:00:15]} 3. c4 {[%emt 0:00:04]} c6 {[%emt 0:00:25]} 4. Qc2 {[%emt 0:00:04]} dxc4 {[%emt 0:01:29]} 5. Qxc4 {[%emt 0:00:05]} Bf5 {[%emt 0:01:03]} 6. g3 {[%emt 0:00:09]} e6 {[%emt 0:01:11]} 7. Bg2 {[%emt 0:00:09]} h6 {[%emt 0:00:57] D23: Queen's Gambit Accepted: 3 Nf3 Nf6 sidelines.} 8. O-O {[%emt 0:00:11]} Be7 {[%emt 0:03:54]} 9. e3 {[%emt 0:00:58]} (9. Ne5 {keeps more tension.} Nbd7 10. Qb3 Qb6 11. Nc4) 9... O-O {[%emt 0:00:48] White has an edge.} 10. Rd1 {[%emt 0:00:42]} Nbd7 {[%emt 0:01:47]} 11. Qe2 {[%emt 0:00:18] 11.Nc3 is vanishing.} Qc7 {[%emt 0:02:50]} 12. Ne1 {[%emt 0:00:37] [#]} (12. Nc3 $14 {feels stronger.}) 12... Be4 $146 {[%emt 0:04:58]} ({Predecessor:} 12... e5 13. e4 Be6 14. d5 cxd5 15. exd5 Bf5 16. Nc3 a6 17. Nc2 Bxc2 18. Qxc2 Rad8 {0-1 (42) Mendis,D (1664)-Newansa,M (1163) Nugegoda 2021}) 13. f3 {[%emt 0:00:58]} Bh7 {[%emt 0:00:20]} 14. e4 {[%emt 0:00:19]} c5 {[%emt 0:03:49]} 15. Be3 {[%emt 0:04:22]} cxd4 {[%emt 0:03:43]} 16. Bxd4 {[%emt 0:00:07]} Bc5 {[%emt 0:00:50]} 17. Bxc5 {[%emt 0:00:57]} Qxc5+ {[%emt 0:01:12]} 18. Qf2 {[%emt 0:00:10]} Rfd8 {[%emt 0:01:36]} 19. Nc3 {[%emt 0:02:01]} Qxf2+ {[%emt 0:07:56]} 20. Kxf2 {[%emt 0:00:05]} Ne5 {[%emt 0:00:44]} 21. Bf1 {[%emt 0:02:53]} Kf8 {[%emt 0:04:22]} 22. Ke3 {[%emt 0:05:40]} Nc6 {[%emt 0:04:16]} 23. Bb5 {[%emt 0:01:26]} Ke7 {[%emt 0:04:45]} (23... Ne5 $14) 24. Bxc6 $16 {[%emt 0:00:19]} bxc6 {[%emt 0:00:09]} 25. Nd3 {[%emt 0:00:25]} Nd7 {[%emt 0:02:40] Against Ne5} 26. f4 {[%emt 0:00:46]} (26. Na4 $16) 26... Rab8 {[%emt 0:02:43]} 27. b3 {[%emt 0:00:16]} f6 {[%emt 0:01:08] White stays focused until the end.} 28. Rac1 {[%emt 0:01:09]} e5 {[%emt 0:02:13]} 29. Na4 {[%emt 0:00:37]} Rbc8 {[%emt 0:03:01]} 30. Nb4 {[%emt 0:00:22] White is more active. Pair of Knights!} Nb8 {[%emt 0:00:31] [#]} (30... exf4+ $16 31. gxf4 c5 32. Nd5+ Kf8) 31. Rxd8 {[%emt 0:00:37]} (31. fxe5 $1 $18 Rxd1 32. exf6+ (32. Rxd1 fxe5 33. Nc5 Rc7 $16) 32... gxf6 33. Rxd1) 31... Kxd8 {[%emt 0:00:39]} (31... exf4+ $16 32. gxf4 Kxd8) 32. Nc5 {[%emt 0:00:12]} ({White should try} 32. fxe5 $18 fxe5 33. Rc5) 32... Bg8 {[%emt 0:00:30]} (32... exf4+ $16 33. gxf4 Ke7) 33. fxe5 $18 {[%emt 0:00:08]} Ke7 {[%emt 0:05:11]} (33... fxe5 $16 {was worth a try.} 34. Nbd3 Nd7) 34. exf6+ {[%emt 0:06:18]} Kxf6 {[%emt 0:01:20]} 35. Rd1 {[%emt 0:00:29]} Ke7 {[%emt 0:00:58]} 36. Rd4 {[%emt 0:02:04]} Rf8 $2 {[%emt 0:02:38]} (36... Rd8 {was called for.} 37. Nbd3 Rxd4 38. Kxd4 Be6) 37. e5 {[%emt 0:00:20]} Rf5 $2 {[%emt 0:01:50]} (37... Rd8 38. Rg4 Kf8 39. Rf4+ Ke7) 38. Nbd3 {[%emt 0:01:15]} g5 {[%emt 0:02:14]} (38... a5 $142 39. Ra4 Nd7 40. Nxd7 Kxd7 41. Rxa5 Bd5 42. Ra7+ Ke8 43. Rxg7 Rf1) 39. Rb4 {[%emt 0:00:05]} Nd7 {[%emt 0:00:56]} 40. Rb7 {[%emt 0:00:48][%csl LRa7,LRd7]} Be6 {[%emt 0:00:07]} 41. Nxd7 {[%emt 0:00:25]} Bxd7 {[%emt 0:00:09][%mdl 4096] Endgame KRB-KRN} 42. Kd4 {[%emt 0:00:17] Black must now prevent Nc5.} Kd8 {[%emt 0:01:55]} 43. Nc5 {[%emt 0:00:39]} Bc8 {[%emt 0:00:14]} 44. Rxa7 {[%emt 0:00:40]} Rf2 {[%emt 0:00:28]} 45. e6 {[%emt 0:00:21][%cal Be5e6,Be6e7][%mdl 32]} Rd2+ {[%emt 0:02:25]} 46. Ke3 {[%emt 0:01:02]} Rxh2 {[%emt 0:01:53]} 47. e7+ {[%emt 0:00:04]} Ke8 {[%emt 0:00:10]} 48. Ne4 {[%emt 0:00:07][%cal Re4d6]} Bd7 {[%emt 0:00:46]} 49. Nf6+ {[%emt 0:00:13]} Kxe7 {[%emt 0:00:04]} 50. Nxd7 {[%emt 0:00:04] KRN-KR} h5 {[%emt 0:01:22]} 51. Ne5+ {[%emt 0:00:07]} Kf6 {[%emt 0:01:36]} 52. Nxc6 {[%emt 0:00:28]} Rh3 {[%emt 0:00:32]} 53. Kf2 {[%emt 0:00:12] aiming for Kg2.} Rh2+ {[%emt 0:00:24]} 54. Kg1 {[%emt 0:00:18]} Rd2 {[%emt 0:00:34]} 55. Ra5 {[%emt 0:00:32]} Rd6 {[%emt 0:00:42]} 56. Nb4 {[%emt 0:00:12] Ra6 is the strong threat.} Rd4 {[%emt 0:00:11]} 57. Rb5 {[%emt 0:00:39]} Rd1+ {[%emt 0:02:16]} 58. Kf2 {[%emt 0:00:31]} h4 {[%emt 0:00:50]} 59. gxh4 {[%emt 0:00:04]} gxh4 {[%emt 0:00:08]} 60. Nd5+ {[%emt 0:00:10]} Ke6 {[%emt 0:00:35] [#]} 61. a4 $1 {[%emt 0:00:42][%cal Ba2a4,Ba4a5][%mdl 32] And now Nf4+ would win.} Rd4 {[%emt 0:03:07] [#]} (61... Kd7 62. Nf4) 62. Ke3 $1 {[%emt 0:00:51]} Rg4 {[%emt 0:01:11]} (62... Rd1 63. Nf4+) 63. Nf4+ {[%emt 0:00:04]} Kd6 {[%emt 0:00:22]} 64. a5 {[%emt 0:01:29]} h3 {[%emt 0:00:23]} 65. Nxh3 {[%emt 0:00:38] White wants to mate with Nf4.} Rg3+ {[%emt 0:00:09]} 66. Kd4 {[%emt 0:00:03] White threatens Nf4 and mate.} Rxh3 {[%emt 0:00:10] KR-KR} 67. Rb6+ {[%emt 0:00:30]} Kc7 {[%emt 0:00:20]} 68. b4 {[%emt 0:00:10]} Rh4+ {[%emt 0:02:32]} 69. Kc5 {[%emt 0:00:11]} Rh5+ {[%emt 0:00:08]} 70. Kc4 {[%emt 0:00:09]} Rg5 {[%emt 0:01:02]} 71. Rh6 {[%emt 0:00:23]} Kb7 {[%emt 0:00:19]} 72. Rd6 {[%emt 0:00:45]} Rg1 {[%emt 0:00:34]} 73. Kc5 {[%emt 0:00:22]} Rc1+ {[%emt 0:00:20]} 74. Kb5 {[%emt 0:00:04]} Rc7 {[%emt 0:01:10]} 75. Rb6+ {[%emt 0:00:22]} Ka7 {[%emt 0:00:07]} 76. Rc6 {[%emt 0:00:21]} Rg7 {[%emt 0:00:21]} 77. Rc5 {[%emt 0:00:18]} Rb7+ {[%emt 0:00:51]} 78. Ka4 {[%emt 0:00:12]} Rg7 {[%emt 0:00:23]} 79. b5 {[%emt 0:00:06]} Rg4+ {[%emt 0:00:06]} 80. Kb3 {[%emt 0:00:09]} Kb7 {[%emt 0:00:16]} 81. Rh5 {[%emt 0:00:15]} Rg7 {[%emt 0:00:17]} 82. Kb4 {[%emt 0:00:06]} Rg4+ {[%emt 0:00:05]} 83. Kc5 {[%emt 0:00:04]} Rg7 {[%emt 0:00:19]} 84. a6+ {[%emt 0:00:13]} Ka7 {[%emt 0:00:06]} 85. Rh6 {[%emt 0:00:12]} Rc7+ {[%emt 0:00:19]} 86. Kb4 {[%emt 0:00:13]} Rg7 {[%emt 0:00:09]} 87. Ka5 {[%emt 0:00:14]} Rg5 {[%emt 0:00:06]} 88. Rh7+ {[%emt 0:00:12]} Ka8 {[%emt 0:00:06]} 89. Rc7 {[%emt 0:00:26]} Kb8 {[%emt 0:00:21]} 90. Kb6 $2 {[%emt 0:00:32]} (90. Rd7 {mates} Rf5 91. Kb6 Rf8 92. Rd6 Rc8 93. Ka5 Rc5 94. Kb4 Rc1 95. b6) 90... Rg6+ $2 {[%emt 0:00:12][%mdl 8192]} (90... Rxb5+ $11 91. Kc6 Rc5+ 92. Kxc5 Kxc7) 91. Rc6 {[%emt 0:00:05] White mates.} Rg7 {[%emt 0:00:08]} 92. a7+ {[%emt 0:00:21]} Rxa7 {[%emt 0:00:15] [#]} 93. Rc8+ $3 {[%emt 0:00:03][%mdl 512] Weighted Error Value: White=0.28 (precise) /Black=0.30} 1-0

[Event "Vienna Championship-B 2022"]
[Site "Vienna"]
[Date "2022.09.19"]
[Round "3.7"]
[White "Schwabeneder, Alois"]
[Black "Kunschek, Horst"]
[Result "1-0"]
[ECO "C70"]
[WhiteElo "1911"]
[BlackElo "1743"]
[Annotator "TA"]
[PlyCount "87"]
[EventDate "2022.09.17"]
[EventType "swiss"]
[EventCountry "AUT"]
[SourceTitle "playchess.com"]
[Source "ChessBase"]
[SourceQuality "1"]
[TimeControl "5400+30"]

{[%evp 9,87,25,51,21,41,20,23,5,15,-30,-31,-35,-31,-35,-39,-37,-45,-58,-43,-47,-16,-52,-17,-17,-31,-22,-23,-24,0,-18,0,-11,-14,-45,164,0,0,0,82,58,91,10,6,4,39,53,68,39,46,48,40,41,55,45,77,34,41,10,23,24,23,0,69,77,112,117,132,117,155,152,140,140,131,129,800,756,797,770,737,714]} 1. e4 {[%emt 0:00:04]} e5 {[%emt 0:00:09]} 2. Nf3 {[%emt 0:00:20]} Nc6 {[%emt 0:00:07]} 3. Bb5 {[%emt 0:00:57][%cal Bf1b5,Bb5a4,Ba4b3][%mdl 32]} a6 {[%emt 0:00:08]} 4. Ba4 {[%emt 0:00:08]} b5 {[%emt 0:00:09]} 5. Bb3 {[%emt 0:00:08]} Bc5 {[%emt 0:00:09]} 6. d3 {[%emt 0:01:28] C70: Ruy Lopez: 3...a6 4 Ba4, Norwegian and Delayed Schliemann.} h6 {[%emt 0:00:11]} 7. O-O {[%emt 0:03:55]} d6 {[%emt 0:00:07]} 8. Be3 {[%emt 0:00:32] White has an edge.} Nf6 {[%emt 0:00:55] [#]} 9. Bd5 $146 {[%emt 0:07:47]} ({Predecessor:} 9. c3 O-O 10. Nbd2 Rb8 11. Qe2 Ng4 12. Bxc5 dxc5 13. Rad1 Nf6 14. Rfe1 Be6 15. Bxe6 fxe6 {0-1 (47) Spraggett,K (2535)-Kaczur,F (2459) Lisbon 2018}) 9... Nxd5 {[%emt 0:00:59]} 10. exd5 {[%emt 0:00:06]} Bxe3 {[%emt 0:01:14]} 11. fxe3 {[%emt 0:00:33]} Ne7 {[%emt 0:00:31]} 12. e4 {[%emt 0:01:25]} O-O {[%emt 0:00:09]} 13. a4 {[%emt 0:04:34]} c6 {[%emt 0:03:33]} 14. dxc6 $1 {[%emt 0:03:45]} Nxc6 {[%emt 0:02:34]} 15. Kh1 {[%emt 0:05:41]} (15. axb5 {is more complex.} Qb6+ 16. Rf2 Qxb5 17. c3) 15... bxa4 {[%emt 0:00:09]} 16. Rxa4 {[%emt 0:00:22]} Bd7 {[%emt 0:00:30]} 17. Ra1 {[%emt 0:01:07]} Qb6 {[%emt 0:00:11]} 18. b3 {[%emt 0:02:44]} Bg4 {[%emt 0:01:51]} 19. h3 {[%emt 0:01:19]} Bxf3 {[%emt 0:00:06]} 20. Qxf3 {[%emt 0:01:48]} Nd4 {[%emt 0:00:15][%csl LRc2,LRf3]} 21. Qf2 {[%emt 0:00:09] [#] Threatens to win with c3.} Rac8 {[%emt 0:00:05]} (21... Qc6 $15 {keeps the upper hand.} 22. Na3 f5) 22. Na3 $2 {[%emt 0:00:41]} ({Only move:} 22. c3 $18) 22... Qc5 {[%emt 0:01:22]} 23. Nc4 {[%emt 0:00:52]} Qc6 {[%emt 0:03:57]} (23... f5 $11) 24. Qd2 {[%emt 0:06:34]} f5 {[%emt 0:00:41] [#]} 25. exf5 {[%emt 0:02:52]} (25. c3 $1 $16 {[%cal Rc3d4]} Nb5 26. exf5 (26. Rxf5 Rxf5 27. exf5 Rf8 $14)) 25... Nxf5 {[%emt 0:00:20] ...Ng3+ is the strong threat.} 26. Rf3 {[%emt 0:01:16] Against Ng3+} e4 {[%emt 0:00:59]} 27. dxe4 {[%emt 0:01:47]} Qxe4 {[%emt 0:00:11]} 28. Rd1 {[%emt 0:01:22]} ({Don't play} 28. Rxa6 d5 29. Nb6 Rc6 $11) ({Much worse is} 28. Nxd6 Qe5 29. Rxa6 (29. Nxc8 Qxa1+ 30. Kh2 Qe5+ 31. Qf4 Qc5 $11) 29... Rcd8 $11) 28... Rcd8 {[%emt 0:00:52]} 29. Qd5+ {[%emt 0:00:22]} Qxd5 {[%emt 0:00:16]} 30. Rxd5 {[%emt 0:00:29]} g6 {[%emt 0:01:45]} 31. Kg1 {[%emt 0:08:32]} h5 {[%emt 0:01:38]} 32. g3 {[%emt 0:08:33] White is more active.} Kg7 {[%emt 0:01:02]} 33. Kg2 {[%emt 0:02:43]} Rfe8 {[%emt 0:01:29]} 34. Kf2 {[%emt 0:00:40]} Re6 {[%emt 0:00:32]} 35. Rfd3 {[%emt 0:01:00]} Rf6 {[%emt 0:00:56]} (35... Rf8 $11 36. Rf3 Rfe8) 36. Ke2 {[%emt 0:00:58]} Re8+ {[%emt 0:01:38]} 37. Kd2 {[%emt 0:00:02]} Ree6 {[%emt 0:01:17]} 38. Kc3 {[%emt 0:00:38]} Kf7 {[%emt 0:00:09]} 39. g4 {[%emt 0:01:58]} hxg4 {[%emt 0:00:16]} 40. hxg4 {[%emt 0:00:11][%cal Bh3g4,Bg4g5][%mdl 32]} Ne7 {[%emt 0:01:07]} 41. Rxd6 {[%emt 0:02:50]} Nc6 $2 {[%emt 0:01:29][%mdl 8192]} (41... Rxd6 $16 42. Nxd6+ Ke6) 42. g5 $18 {[%emt 0:01:46] White is clearly winning.} Rf5 {[%emt 0:01:18]} 43. Rxe6 {[%emt 0:00:13]} Kxe6 {[%emt 0:00:05]} 44. Rd6+ {Weighted Error Value: White=0.22 (precise) /Black=0.28 (precise)} 1-0

[Event "Vienna Championship-B 2022"]
[Site "Vienna"]
[Date "2022.09.19"]
[Round "3.8"]
[White "Berrouka, Elias"]
[Black "Hirsch, Adolf Jun."]
[Result "1/2-1/2"]
[ECO "D79"]
[WhiteElo "1847"]
[BlackElo "1731"]
[Annotator "NA COMBH"]
[PlyCount "66"]
[EventDate "2022.09.17"]
[EventType "swiss"]
[EventCountry "AUT"]
[SourceTitle "playchess.com"]
[Source "ChessBase"]
[SourceQuality "1"]
[TimeControl "5400+30"]

1. d4 {[%emt 0:00:03]} Nf6 {[%emt 0:00:05]} 2. c4 {[%emt 0:00:07]} g6 {[%emt 0:00:05]} 3. Nf3 {[%emt 0:00:07]} Bg7 {[%emt 0:00:06]} 4. g3 {[%emt 0:00:22]} c6 {[%emt 0:00:28]} 5. Nc3 {[%emt 1:32:21]} d5 {[%emt 0:00:22]} 6. cxd5 {[%emt 0:00:00]} cxd5 {[%emt 0:00:05]} 7. Bg2 {[%emt 0:00:00]} O-O {[%emt 0:00:29]} 8. O-O {[%emt 0:00:00]} Nc6 {[%emt 0:00:29]} 9. Bf4 {[%emt 0:00:00]} Ne4 {[%emt 0:03:21]} 10. Qb3 {[%emt 0:00:00]} e6 {[%emt 0:01:53]} 11. e3 {[%emt 0:00:00]} h6 {[%emt 0:11:11]} 12. h4 {[%emt 0:00:00]} f6 {[%emt 0:06:10]} 13. g4 {[%emt 0:00:00]} g5 {[%emt 0:03:27]} 14. Bh2 {[%emt 0:00:00]} gxh4 {[%emt 0:01:13]} 15. Nxe4 {[%emt 0:00:00]} dxe4 {[%emt 0:00:02]} 16. Nd2 {[%emt 0:00:00]} Na5 {[%emt 0:00:39]} 17. Qc3 {[%emt 0:00:00]} Nc6 {[%emt 0:11:08]} 18. Nxe4 {[%emt 0:00:00]} e5 {[%emt 0:04:55]} 19. d5 {[%emt 0:00:00]} Ne7 {[%emt 0:00:44]} 20. d6 {[%emt 0:00:00]} Nc6 {[%emt 0:03:42]} 21. f3 {[%emt 0:00:00]} Bd7 {[%emt 0:02:16]} 22. Nc5 {[%emt 0:00:00]} b6 {[%emt 0:01:51]} 23. Nxd7 {[%emt 0:00:00]} Qxd7 {[%emt 0:00:01]} 24. Rfd1 {[%emt 0:00:00]} Rac8 {[%emt 0:00:22]} 25. Qa3 {[%emt 0:00:00]} Rfd8 {[%emt 0:00:49]} 26. Rd2 {[%emt 0:00:00]} Na5 {[%emt 0:00:33]} 27. Bf1 {[%emt 0:00:00]} Kh8 {[%emt 0:00:34]} 28. Ba6 {[%emt 0:00:57]} Rc5 {[%emt 0:03:09]} 29. Qd3 {[%emt 0:01:14]} Nc6 {[%emt 0:04:51]} 30. a3 {[%emt 0:01:52]} Nb8 {[%emt 0:02:06]} 31. b4 {[%emt 0:05:00]} Nxa6 {[%emt 0:00:04]} 32. bxc5 {[%emt 0:00:02]} Nxc5 {[%emt 0:00:06]} 33. Qd5 {[%emt 0:00:46]} Bf8 {[%emt 0:04:04]} 1/2-1/2